[Event "Titled Tuesday Blitz May 30 Late 2023"]
[White "Bernabeu Lopez, Carlos Javier"]
[Black "Gheorghiu, Calin"]
[WhiteFideId "2235366"]
[BlackFideId "1200305"]
[WhiteElo "2344"]
[BlackElo "2223"]
[Result "1/2-1/2"]
[Round "06"]
[TimeControl "180+2"]
[Date "2023.05.31"]
[WhiteClock "0:01:57"]
[BlackClock "0:00:35"]

1. e4 {[%clk 0:02:58]}  e6 {[%clk 0:02:58]} 2. d4 {[%clk 0:02:58]}  d5 {[%clk 0:02:57]} 3. Nd2 {[%clk 0:02:59]}  c5 {[%clk 0:02:54]} 4. exd5 {[%clk 0:02:59]}  Qxd5 {[%clk 0:02:53]} 5. Ngf3 {[%clk 0:03:00]}  cxd4 {[%clk 0:02:53]} 6. Bc4 {[%clk 0:03:01]}  Qd6 {[%clk 0:02:52]} 7. O-O {[%clk 0:03:01]}  Nf6 {[%clk 0:02:49]} 8. Nb3 {[%clk 0:03:02]}  Nc6 {[%clk 0:02:49]} 9. Nbxd4 {[%clk 0:02:59]}  Nxd4 {[%clk 0:02:50]} 10. Qxd4 {[%clk 0:02:59]}  Bd7 {[%clk 0:02:45]} 11. Be3 {[%clk 0:02:54]}  Rc8 {[%clk 0:02:36]} 12. Bb3 {[%clk 0:02:49]}  Qxd4 {[%clk 0:02:31]} 13. Bxd4 {[%clk 0:02:50]}  Bc5 {[%clk 0:02:30]} 14. Rad1 {[%clk 0:02:47]}  Ke7 {[%clk 0:02:27]} 15. Ne5 {[%clk 0:02:33]}  Rhd8 {[%clk 0:02:13]} 16. c3 {[%clk 0:02:17]}  Bb5 {[%clk 0:01:25]} 17. Bxc5+ {[%clk 0:02:16]}  Rxc5 {[%clk 0:01:25]} 18. Rxd8 {[%clk 0:02:17]}  Kxd8 {[%clk 0:01:24]} 19. Rd1+ {[%clk 0:02:15]}  Ke7 {[%clk 0:01:20]} 20. Nd3 {[%clk 0:02:15]}  Rc7 {[%clk 0:01:10]} 21. Nf4 {[%clk 0:02:13]}  Ne4 {[%clk 0:01:06]} 22. Bc2 {[%clk 0:02:07]}  Bc6 {[%clk 0:00:59]} 23. f3 {[%clk 0:02:05]}  Nf6 {[%clk 0:00:55]} 24. Kf2 {[%clk 0:02:05]}  h6 {[%clk 0:00:53]} 25. h4 {[%clk 0:02:02]}  g5 {[%clk 0:00:46]} 26. hxg5 {[%clk 0:02:03]}  hxg5 {[%clk 0:00:47]} 27. Nd3 {[%clk 0:02:03]}  g4 {[%clk 0:00:45]} 28. Ne5 {[%clk 0:02:03]}  gxf3 {[%clk 0:00:45]} 29. gxf3 {[%clk 0:02:04]}  Nd7 {[%clk 0:00:39]} 30. Nxd7 {[%clk 0:01:55]}  Rxd7 {[%clk 0:00:38]} 31. Rxd7+ {[%clk 0:01:56]}  Kxd7 {[%clk 0:00:38]} 32. f4 {[%clk 0:01:56]}  f6 {[%clk 0:00:34]} 33. Ke3 {[%clk 0:01:57]}  e5 {[%clk 0:00:34]} 34. fxe5 {[%clk 0:01:57]}  fxe5 {[%clk 0:00:35]} 1/2-1/2


[Site "https://www.chess.com"]

[Event "Titled Tuesday Blitz May 30 Late 2023"]
[White "Jakic, Ivan"]
[Black "Korchmar, Vasiliy"]
[WhiteFideId "14504901"]
[BlackFideId "24131750"]
[WhiteElo "2370"]
[BlackElo "2370"]
[Result "0-1"]
[Round "06"]
[TimeControl "180+2"]
[Date "2023.05.31"]
[WhiteClock "0:00:04"]
[BlackClock "0:00:06"]

1. e4 {[%clk 0:03:00]}  c5 {[%clk 0:03:00]} 2. Nf3 {[%clk 0:03:00]}  d6 {[%clk 0:03:00]} 3. d4 {[%clk 0:03:00]}  cxd4 {[%clk 0:03:01]} 4. Qxd4 {[%clk 0:03:01]}  Nc6 {[%clk 0:03:01]} 5. Bb5 {[%clk 0:03:01]}  a6 {[%clk 0:03:02]} 6. Bxc6+ {[%clk 0:03:01]}  bxc6 {[%clk 0:03:03]} 7. Nc3 {[%clk 0:03:02]}  e5 {[%clk 0:03:03]} 8. Qd3 {[%clk 0:03:00]}  Qc7 {[%clk 0:03:04]} 9. Be3 {[%clk 0:03:00]}  Nf6 {[%clk 0:03:04]} 10. h3 {[%clk 0:03:00]}  Be7 {[%clk 0:03:05]} 11. Rd1 {[%clk 0:02:56]}  O-O {[%clk 0:03:05]} 12. O-O {[%clk 0:02:56]}  h6 {[%clk 0:03:03]} 13. Nd2 {[%clk 0:02:56]}  Be6 {[%clk 0:03:03]} 14. Nc4 {[%clk 0:02:56]}  d5 {[%clk 0:03:01]} 15. Nb6 {[%clk 0:02:52]}  Rad8 {[%clk 0:02:58]} 16. exd5 {[%clk 0:02:50]}  cxd5 {[%clk 0:02:58]} 17. Qxa6 {[%clk 0:02:40]}  d4 {[%clk 0:02:57]} 18. Nb5 {[%clk 0:02:41]}  Qxc2 {[%clk 0:02:46]} 19. Bxd4 {[%clk 0:01:13]}  exd4 {[%clk 0:02:45]} 20. Nxd4 {[%clk 0:01:02]}  Qxb2 {[%clk 0:02:45]} 21. Nxe6 {[%clk 0:00:52]}  fxe6 {[%clk 0:02:46]} 22. Nc4 {[%clk 0:00:43]}  Qe2 {[%clk 0:02:42]} 23. Rde1 {[%clk 0:00:36]}  Ra8 {[%clk 0:02:34]} 24. Qc6 {[%clk 0:00:24]}  Rac8 {[%clk 0:02:34]} 25. Qxc8 {[%clk 0:00:17]}  Qxf1+ {[%clk 0:02:33]} 26. Kxf1 {[%clk 0:00:16]}  Rxc8 {[%clk 0:02:34]} 27. Rxe6 {[%clk 0:00:16]}  Rxc4 {[%clk 0:02:21]} 28. Rxe7 {[%clk 0:00:16]}  Ra4 {[%clk 0:02:22]} 29. Re2 {[%clk 0:00:16]}  Ne4 {[%clk 0:02:23]} 30. Rc2 {[%clk 0:00:14]}  Ra3 {[%clk 0:02:22]} 31. g3 {[%clk 0:00:14]}  Nc3 {[%clk 0:02:22]} 32. Kg2 {[%clk 0:00:15]}  Nxa2 {[%clk 0:02:23]} 33. Rc8+ {[%clk 0:00:14]}  Kh7 {[%clk 0:02:22]} 34. h4 {[%clk 0:00:15]}  Nc3 {[%clk 0:02:22]} 35. g4 {[%clk 0:00:16]}  Ne4 {[%clk 0:02:21]} 36. Rf8 {[%clk 0:00:15]}  Ra2 {[%clk 0:02:17]} 37. h5 {[%clk 0:00:15]}  Nf6 {[%clk 0:02:13]} 38. Kg3 {[%clk 0:00:14]}  Ra1 {[%clk 0:02:11]} 39. f3 {[%clk 0:00:14]}  Ra3 {[%clk 0:02:11]} 40. Kg2 {[%clk 0:00:11]}  Nd7 {[%clk 0:02:10]} 41. Rf5 {[%clk 0:00:10]}  Ra2+ {[%clk 0:02:08]} 42. Kg3 {[%clk 0:00:10]}  Ra3 {[%clk 0:02:08]} 43. Kg2 {[%clk 0:00:09]}  Rc3 {[%clk 0:02:06]} 44. Kg3 {[%clk 0:00:09]}  Nc5 {[%clk 0:02:07]} 45. Kg2 {[%clk 0:00:08]}  Kg8 {[%clk 0:02:07]} 46. Kg3 {[%clk 0:00:09]}  Ne4+ {[%clk 0:02:08]} 47. Kf4 {[%clk 0:00:08]}  Ng5 {[%clk 0:02:07]} 48. Kg3 {[%clk 0:00:08]}  Rd3 {[%clk 0:02:06]} 49. Kg2 {[%clk 0:00:08]}  Nf7 {[%clk 0:02:04]} 50. Kg3 {[%clk 0:00:08]}  Nd6 {[%clk 0:02:05]} 51. Rf4 {[%clk 0:00:08]}  Ne8 {[%clk 0:02:02]} 52. Kg2 {[%clk 0:00:08]}  Nf6 {[%clk 0:02:02]} 53. Rf5 {[%clk 0:00:08]}  Kf7 {[%clk 0:02:03]} 54. Kg3 {[%clk 0:00:08]}  Ke6 {[%clk 0:02:03]} 55. Kg2 {[%clk 0:00:09]}  Rc3 {[%clk 0:02:03]} 56. Kg3 {[%clk 0:00:09]}  Ne4+ {[%clk 0:02:03]} 57. Kf4 {[%clk 0:00:08]}  Ng5 {[%clk 0:02:02]} 58. Kg3 {[%clk 0:00:08]}  Rb3 {[%clk 0:02:02]} 59. Rf4 {[%clk 0:00:07]}  Ke5 {[%clk 0:02:01]} 60. Rf5+ {[%clk 0:00:07]}  Ke6 {[%clk 0:02:01]} 61. Rf4 {[%clk 0:00:08]}  Rb7 {[%clk 0:01:50]} 62. Ra4 {[%clk 0:00:05]}  Rf7 {[%clk 0:01:49]} 63. Ra6+ {[%clk 0:00:05]}  Kd5 {[%clk 0:01:49]} 64. Ra5+ {[%clk 0:00:05]}  Kc4 {[%clk 0:01:44]} 65. Ra4+ {[%clk 0:00:05]}  Kb3 {[%clk 0:01:42]} 66. Rf4 {[%clk 0:00:05]}  Kc3 {[%clk 0:00:47]} 67. Rxf7 {[%clk 0:00:03]}  Nxf7 {[%clk 0:00:48]} 68. Kf4 {[%clk 0:00:04]}  Kd4 {[%clk 0:00:11]} 69. Kf5 {[%clk 0:00:04]}  Ne5 {[%clk 0:00:12]} 70. f4 {[%clk 0:00:04]}  Nxg4 {[%clk 0:00:12]} 71. Kxg4 {[%clk 0:00:04]}  Ke4 {[%clk 0:00:12]} 72. Kg3 {[%clk 0:00:04]}  Ke3 {[%clk 0:00:06]} 73. Kg4 {[%clk 0:00:02]}  Kf2 {[%clk 0:00:03]} 74. Kf5 {[%clk 0:00:03]}  Kg3 {[%clk 0:00:03]} 75. Kg6 {[%clk 0:00:04]}  Kxf4 {[%clk 0:00:03]} 76. Kxg7 {[%clk 0:00:04]}  Kg5 {[%clk 0:00:04]} 77. Kf7 {[%clk 0:00:03]}  Kxh5 {[%clk 0:00:05]} 78. Kf6 {[%clk 0:00:04]}  Kg4 {[%clk 0:00:05]} 79. Kg6 {[%clk 0:00:04]}  h5 {[%clk 0:00:06]} 0-1


[Site "https://www.chess.com"]

[Event "Titled Tuesday Blitz May 30 Late 2023"]
[White "Mustafayev, Farid"]
[Black "Rangel, Daniel"]
[WhiteFideId "13408771"]
[BlackFideId "2124475"]
[WhiteElo "2197"]
[BlackElo "2256"]
[Result "1-0"]
[Round "06"]
[TimeControl "180+2"]
[Date "2023.05.31"]
[WhiteClock "0:00:25"]
[BlackClock "0:00:04"]

1. Nf3 {[%clk 0:02:58]}  Nf6 {[%clk 0:02:59]} 2. c4 {[%clk 0:02:58]}  e6 {[%clk 0:02:59]} 3. g3 {[%clk 0:02:58]}  d5 {[%clk 0:02:59]} 4. Bg2 {[%clk 0:02:58]}  Be7 {[%clk 0:02:58]} 5. O-O {[%clk 0:02:58]}  O-O {[%clk 0:02:59]} 6. b3 {[%clk 0:02:58]}  a5 {[%clk 0:02:57]} 7. Bb2 {[%clk 0:02:53]}  a4 {[%clk 0:02:54]} 8. a3 {[%clk 0:02:39]}  axb3 {[%clk 0:02:51]} 9. Qxb3 {[%clk 0:02:38]}  Nc6 {[%clk 0:02:40]} 10. cxd5 {[%clk 0:02:38]}  exd5 {[%clk 0:02:39]} 11. d3 {[%clk 0:02:30]}  Na5 {[%clk 0:02:35]} 12. Qc2 {[%clk 0:02:30]}  h6 {[%clk 0:02:31]} 13. Nc3 {[%clk 0:02:22]}  c6 {[%clk 0:02:30]} 14. Rac1 {[%clk 0:02:08]}  Bf5 {[%clk 0:02:11]} 15. e4 {[%clk 0:02:05]}  Bh7 {[%clk 0:02:11]} 16. Rfd1 {[%clk 0:02:01]}  dxe4 {[%clk 0:01:55]} 17. dxe4 {[%clk 0:02:00]}  Qb6 {[%clk 0:01:55]} 18. Na4 {[%clk 0:01:55]}  Qa7 {[%clk 0:01:38]} 19. Bd4 {[%clk 0:01:50]}  Qb8 {[%clk 0:01:34]} 20. Nh4 {[%clk 0:01:27]}  Bxa3 {[%clk 0:01:18]} 21. Rb1 {[%clk 0:01:21]}  Be7 {[%clk 0:01:16]} 22. Nb6 {[%clk 0:01:17]}  Ra6 {[%clk 0:01:08]} 23. Bxf6 {[%clk 0:01:17]}  Bxf6 {[%clk 0:01:03]} 24. Nd7 {[%clk 0:01:17]}  Qd8 {[%clk 0:01:02]} 25. Nf5 {[%clk 0:01:10]}  Re8 {[%clk 0:00:49]} 26. Nc5 {[%clk 0:01:08]}  Qa8 {[%clk 0:00:42]} 27. Nxa6 {[%clk 0:01:07]}  Qxa6 {[%clk 0:00:43]} 28. Qc5 {[%clk 0:01:04]}  b5 {[%clk 0:00:34]} 29. Rd6 {[%clk 0:00:42]}  Qb7 {[%clk 0:00:19]} 30. Nxh6+ {[%clk 0:00:42]}  Kh8 {[%clk 0:00:17]} 31. Nf5 {[%clk 0:00:35]}  Bxf5 {[%clk 0:00:14]} 32. Qxf5 {[%clk 0:00:34]}  Nc4 {[%clk 0:00:14]} 33. Rd7 {[%clk 0:00:31]}  Qc8 {[%clk 0:00:13]} 34. Qh5+ {[%clk 0:00:31]}  Kg8 {[%clk 0:00:12]} 35. Qxf7+ {[%clk 0:00:32]}  Kh7 {[%clk 0:00:13]} 36. Rbd1 {[%clk 0:00:30]}  Ne5 {[%clk 0:00:12]} 37. Qxf6 {[%clk 0:00:29]}  Nxd7 {[%clk 0:00:11]} 38. Qf5+ {[%clk 0:00:29]}  Kg8 {[%clk 0:00:11]} 39. Rxd7 {[%clk 0:00:29]}  Rf8 {[%clk 0:00:04]} 40. Qe6+ {[%clk 0:00:29]}  Kh8 {[%clk 0:00:04]} 41. Qe7 {[%clk 0:00:25]} 1-0


[Site "https://www.chess.com"]

[Event "Titled Tuesday Blitz May 30 Late 2023"]
[White "Golubev, Mikhail"]
[Black "Oglaza, Oskar"]
[WhiteFideId "14100983"]
[BlackFideId "1194402"]
[WhiteElo "2374"]
[BlackElo "2204"]
[Result "1-0"]
[Round "06"]
[TimeControl "180+2"]
[Date "2023.05.31"]
[WhiteClock "0:00:21"]
[BlackClock "0:00:04"]

1. e4 {[%clk 0:03:00]}  c5 {[%clk 0:02:59]} 2. Nf3 {[%clk 0:03:00]}  d6 {[%clk 0:02:59]} 3. d4 {[%clk 0:03:00]}  cxd4 {[%clk 0:02:59]} 4. Nxd4 {[%clk 0:03:01]}  Nf6 {[%clk 0:03:00]} 5. Nc3 {[%clk 0:03:02]}  a6 {[%clk 0:03:00]} 6. Bc4 {[%clk 0:03:01]}  Nbd7 {[%clk 0:02:56]} 7. O-O {[%clk 0:03:00]}  b5 {[%clk 0:02:56]} 8. Bb3 {[%clk 0:02:57]}  Nc5 {[%clk 0:02:48]} 9. Re1 {[%clk 0:02:54]}  Nxb3 {[%clk 0:02:48]} 10. axb3 {[%clk 0:02:53]}  Bb7 {[%clk 0:02:48]} 11. Bg5 {[%clk 0:02:47]}  e6 {[%clk 0:02:48]} 12. Nd5 {[%clk 0:02:21]}  exd5 {[%clk 0:02:00]} 13. exd5+ {[%clk 0:02:21]}  Kd7 {[%clk 0:02:01]} 14. c4 {[%clk 0:02:20]}  g6 {[%clk 0:01:35]} 15. Qf3 {[%clk 0:01:58]}  Bg7 {[%clk 0:01:34]} 16. Nc6 {[%clk 0:01:58]}  Bxc6 {[%clk 0:01:26]} 17. dxc6+ {[%clk 0:01:59]}  Kc7 {[%clk 0:01:26]} 18. cxb5 {[%clk 0:01:59]}  h6 {[%clk 0:00:54]} 19. b6+ {[%clk 0:01:15]}  Kxb6 {[%clk 0:00:54]} 20. Be3+ {[%clk 0:01:15]}  Kc7 {[%clk 0:00:49]} 21. Bd2 {[%clk 0:01:14]}  a5 {[%clk 0:00:25]} 22. Bxa5+ {[%clk 0:01:14]}  Rxa5 {[%clk 0:00:23]} 23. Rxa5 {[%clk 0:01:15]}  Qb8 {[%clk 0:00:02]} 24. Re7+ {[%clk 0:01:11]}  Kb6 {[%clk 0:00:03]} 25. Ra4 {[%clk 0:00:29]}  Rc8 {[%clk 0:00:03]} 26. Rb4+ {[%clk 0:00:25]}  Kc5 {[%clk 0:00:03]} 27. Rxb8 {[%clk 0:00:25]}  Rxb8 {[%clk 0:00:04]} 28. c7 {[%clk 0:00:25]}  Rc8 {[%clk 0:00:04]} 29. Qb7 {[%clk 0:00:23]}  Nd5 {[%clk 0:00:03]} 30. Qxc8 {[%clk 0:00:22]}  Nxe7 {[%clk 0:00:04]} 31. Qd7 {[%clk 0:00:21]} 1-0


[Site "https://www.chess.com"]

[Event "Titled Tuesday Blitz May 30 Late 2023"]
[White "Padalka, Artem"]
[Black "Mortazavi, Ali"]
[WhiteFideId "14118637"]
[BlackFideId "401323"]
[WhiteElo "2073"]
[BlackElo "2339"]
[Result "0-1"]
[Round "06"]
[TimeControl "180+2"]
[Date "2023.05.31"]
[WhiteClock "0:00:02"]
[BlackClock "0:00:08"]

1. Nf3 {[%clk 0:02:58]}  Nf6 {[%clk 0:02:59]} 2. c4 {[%clk 0:02:59]}  g6 {[%clk 0:03:00]} 3. g3 {[%clk 0:02:59]}  Bg7 {[%clk 0:03:01]} 4. Bg2 {[%clk 0:03:00]}  O-O {[%clk 0:03:01]} 5. O-O {[%clk 0:03:01]}  d6 {[%clk 0:03:02]} 6. Nc3 {[%clk 0:03:01]}  e5 {[%clk 0:03:02]} 7. d3 {[%clk 0:03:01]}  Re8 {[%clk 0:02:57]} 8. Bg5 {[%clk 0:02:55]}  Nbd7 {[%clk 0:02:54]} 9. b4 {[%clk 0:02:49]}  h6 {[%clk 0:02:52]} 10. Bxf6 {[%clk 0:02:48]}  Nxf6 {[%clk 0:02:52]} 11. Nd2 {[%clk 0:02:46]}  h5 {[%clk 0:02:45]} 12. h4 {[%clk 0:02:34]}  Ng4 {[%clk 0:02:40]} 13. Nde4 {[%clk 0:02:30]}  Bd7 {[%clk 0:02:34]} 14. b5 {[%clk 0:02:29]}  Bh6 {[%clk 0:02:06]} 15. a4 {[%clk 0:02:22]}  f5 {[%clk 0:02:04]} 16. Ng5 {[%clk 0:02:20]}  Bxg5 {[%clk 0:02:03]} 17. hxg5 {[%clk 0:02:20]}  Qxg5 {[%clk 0:01:46]} 18. Bxb7 {[%clk 0:02:20]}  h4 {[%clk 0:01:44]} 19. Qc1 {[%clk 0:02:20]}  Qh5 {[%clk 0:01:30]} 20. Kg2 {[%clk 0:02:14]}  h3+ {[%clk 0:01:08]} 21. Kh1 {[%clk 0:02:14]}  Rab8 {[%clk 0:01:07]} 22. Bf3 {[%clk 0:02:04]}  Be6 {[%clk 0:00:54]} 23. Nd5 {[%clk 0:01:55]}  Bxd5 {[%clk 0:00:53]} 24. cxd5 {[%clk 0:01:53]}  e4 {[%clk 0:00:35]} 25. dxe4 {[%clk 0:01:51]}  fxe4 {[%clk 0:00:35]} 26. Bxg4 {[%clk 0:01:51]}  Qxg4 {[%clk 0:00:36]} 27. Ra2 {[%clk 0:01:35]}  Re7 {[%clk 0:00:35]} 28. Qe3 {[%clk 0:01:32]}  Rf8 {[%clk 0:00:36]} 29. Qxa7 {[%clk 0:01:29]}  e3 {[%clk 0:00:34]} 30. f3 {[%clk 0:01:19]}  Qc4 {[%clk 0:00:21]} 31. Rb2 {[%clk 0:01:05]}  Qxd5 {[%clk 0:00:19]} 32. Qa5 {[%clk 0:00:58]}  Ref7 {[%clk 0:00:16]} 33. Qc3 {[%clk 0:00:44]}  Qe6 {[%clk 0:00:12]} 34. Qb3 {[%clk 0:00:38]}  Qe5 {[%clk 0:00:12]} 35. Kh2 {[%clk 0:00:34]}  Kh7 {[%clk 0:00:11]} 36. Kxh3 {[%clk 0:00:31]}  Rh8 {[%clk 0:00:10]} 37. Kg2 {[%clk 0:00:30]}  Kg7 {[%clk 0:00:10]} 38. Rh1 {[%clk 0:00:27]}  Rxh1 {[%clk 0:00:10]} 39. Kxh1 {[%clk 0:00:27]}  Qxg3 {[%clk 0:00:11]} 40. Qxe3 {[%clk 0:00:27]}  Kg8 {[%clk 0:00:07]} 41. Qe8+ {[%clk 0:00:22]}  Kg7 {[%clk 0:00:08]} 42. Qe4 {[%clk 0:00:03]}  Rf5 {[%clk 0:00:08]} 43. Qg4 {[%clk 0:00:02]}  Rh5+ {[%clk 0:00:08]} 0-1


[Site "https://www.chess.com"]

[Event "Titled Tuesday Blitz May 30 Late 2023"]
[White "drdaro"]
[Black "Garakov, Mikhael"]
[BlackFideId "4169034"]
[WhiteElo "2347"]
[BlackElo "2347"]
[Result "0-1"]
[Round "06"]
[TimeControl "180+2"]
[Date "2023.05.31"]
[WhiteClock "0:00:01"]
[BlackClock "0:00:16"]

1. d4 {[%clk 0:02:55]}  c5 {[%clk 0:02:59]} 2. Nf3 {[%clk 0:02:54]}  cxd4 {[%clk 0:02:56]} 3. Nxd4 {[%clk 0:02:55]}  Nf6 {[%clk 0:02:57]} 4. b3 {[%clk 0:02:53]}  d5 {[%clk 0:02:39]} 5. Bb2 {[%clk 0:02:52]}  Nc6 {[%clk 0:02:35]} 6. e3 {[%clk 0:02:46]}  e5 {[%clk 0:02:34]} 7. Nxc6 {[%clk 0:02:46]}  bxc6 {[%clk 0:02:32]} 8. Bxe5 {[%clk 0:02:47]}  Ng4 {[%clk 0:01:53]} 9. Bb2 {[%clk 0:02:32]}  Bb4+ {[%clk 0:01:53]} 10. Nd2 {[%clk 0:02:31]}  Qh4 {[%clk 0:01:31]} 11. g3 {[%clk 0:02:29]}  Qg5 {[%clk 0:01:31]} 12. h3 {[%clk 0:02:07]}  Nf6 {[%clk 0:01:08]} 13. Bg2 {[%clk 0:02:06]}  h5 {[%clk 0:01:05]} 14. Qe2 {[%clk 0:02:02]}  O-O {[%clk 0:01:02]} 15. a3 {[%clk 0:01:48]}  Bd6 {[%clk 0:00:57]} 16. Nf3 {[%clk 0:01:36]}  Qh6 {[%clk 0:00:50]} 17. O-O {[%clk 0:01:31]}  a5 {[%clk 0:00:48]} 18. Nh4 {[%clk 0:01:17]}  g5 {[%clk 0:00:39]} 19. Nf3 {[%clk 0:01:02]}  Ba6 {[%clk 0:00:39]} 20. c4 {[%clk 0:01:01]}  a4 {[%clk 0:00:40]} 21. Nd4 {[%clk 0:00:50]}  Qg6 {[%clk 0:00:32]} 22. Rfd1 {[%clk 0:00:22]}  axb3 {[%clk 0:00:32]} 23. Nxc6 {[%clk 0:00:22]}  Bxc4 {[%clk 0:00:31]} 24. Qxc4 {[%clk 0:00:17]}  dxc4 {[%clk 0:00:31]} 25. Rxd6 {[%clk 0:00:18]}  Qc2 {[%clk 0:00:26]} 26. Bxf6 {[%clk 0:00:12]}  b2 {[%clk 0:00:25]} 27. Ne7+ {[%clk 0:00:05]}  Kh7 {[%clk 0:00:24]} 28. Rf1 {[%clk 0:00:03]}  b1=Q {[%clk 0:00:24]} 29. Bxg5 {[%clk 0:00:03]}  f6 {[%clk 0:00:22]} 30. Bf4 {[%clk 0:00:01]}  Qb5 {[%clk 0:00:16]} 0-1


[Site "https://www.chess.com"]

[Event "Titled Tuesday Blitz May 30 Late 2023"]
[White "Nilsen, Tobias Lang"]
[Black "Bashkansky, Ethan"]
[WhiteFideId "1521624"]
[BlackFideId "2071533"]
[WhiteElo "2183"]
[BlackElo "2334"]
[Result "1/2-1/2"]
[Round "06"]
[TimeControl "180+2"]
[Date "2023.05.31"]
[WhiteClock "0:01:27"]
[BlackClock "0:00:40"]

1. e4 {[%clk 0:03:00]}  c6 {[%clk 0:03:00]} 2. Nc3 {[%clk 0:03:00]}  d5 {[%clk 0:03:01]} 3. Nf3 {[%clk 0:03:00]}  Bg4 {[%clk 0:03:01]} 4. h3 {[%clk 0:03:00]}  Bxf3 {[%clk 0:03:01]} 5. Qxf3 {[%clk 0:03:01]}  dxe4 {[%clk 0:03:01]} 6. Nxe4 {[%clk 0:03:01]}  Nd7 {[%clk 0:03:01]} 7. d4 {[%clk 0:03:01]}  Ngf6 {[%clk 0:03:00]} 8. Nxf6+ {[%clk 0:03:01]}  Nxf6 {[%clk 0:03:00]} 9. c3 {[%clk 0:03:02]}  e6 {[%clk 0:03:01]} 10. Bd3 {[%clk 0:03:02]}  Qd5 {[%clk 0:02:49]} 11. Qxd5 {[%clk 0:03:00]}  exd5 {[%clk 0:02:42]} 12. O-O {[%clk 0:03:00]}  Bd6 {[%clk 0:02:28]} 13. Re1+ {[%clk 0:03:00]}  Kd7 {[%clk 0:02:26]} 14. Bg5 {[%clk 0:02:56]}  Rae8 {[%clk 0:02:08]} 15. Rxe8 {[%clk 0:02:55]}  Nxe8 {[%clk 0:01:54]} 16. a4 {[%clk 0:02:55]}  f6 {[%clk 0:01:45]} 17. Bd2 {[%clk 0:02:55]}  g6 {[%clk 0:01:40]} 18. a5 {[%clk 0:02:54]}  a6 {[%clk 0:01:35]} 19. Kf1 {[%clk 0:02:49]}  Nc7 {[%clk 0:01:34]} 20. h4 {[%clk 0:02:48]}  Re8 {[%clk 0:01:27]} 21. g3 {[%clk 0:02:42]}  Ne6 {[%clk 0:01:22]} 22. Kg2 {[%clk 0:02:41]}  f5 {[%clk 0:01:13]} 23. h5 {[%clk 0:02:38]}  Rg8 {[%clk 0:00:50]} 24. hxg6 {[%clk 0:02:31]}  hxg6 {[%clk 0:00:49]} 25. Rh1 {[%clk 0:02:31]}  Nf8 {[%clk 0:00:44]} 26. Kf3 {[%clk 0:02:27]}  Ke6 {[%clk 0:00:43]} 27. g4 {[%clk 0:02:26]}  Kf6 {[%clk 0:00:36]} 28. Rh6 {[%clk 0:02:10]}  fxg4+ {[%clk 0:00:23]} 29. Kxg4 {[%clk 0:02:11]}  Kg7 {[%clk 0:00:17]} 30. Rh1 {[%clk 0:02:09]}  Rh8 {[%clk 0:00:16]} 31. Rxh8 {[%clk 0:02:07]}  Kxh8 {[%clk 0:00:16]} 32. Bh6 {[%clk 0:02:06]}  Kh7 {[%clk 0:00:14]} 33. Bf4 {[%clk 0:01:53]}  Be7 {[%clk 0:00:15]} 34. Be5 {[%clk 0:01:51]}  Kg8 {[%clk 0:00:15]} 35. f4 {[%clk 0:01:50]}  Kf7 {[%clk 0:00:15]} 36. f5 {[%clk 0:01:51]}  gxf5+ {[%clk 0:00:12]} 37. Bxf5 {[%clk 0:01:52]}  Ne6 {[%clk 0:00:12]} 38. Kh5 {[%clk 0:01:44]}  Bd8 {[%clk 0:00:12]} 39. Kg4 {[%clk 0:01:42]}  Bxa5 {[%clk 0:00:10]} 40. Bd6 {[%clk 0:01:37]}  Bd8 {[%clk 0:00:10]} 41. Be5 {[%clk 0:01:34]}  Be7 {[%clk 0:00:10]} 42. Bg3 {[%clk 0:01:32]}  Bf6 {[%clk 0:00:10]} 43. Bd6 {[%clk 0:01:30]}  Be7 {[%clk 0:00:09]} 44. Be5 {[%clk 0:01:30]}  Bf8 {[%clk 0:00:09]} 45. Bf4 {[%clk 0:01:23]}  a5 {[%clk 0:00:09]} 46. Bd2 {[%clk 0:01:22]}  b5 {[%clk 0:00:09]} 47. Kf3 {[%clk 0:01:19]}  a4 {[%clk 0:00:09]} 48. Ke2 {[%clk 0:01:16]}  Kf6 {[%clk 0:00:08]} 49. Bh3 {[%clk 0:01:13]}  Bd6 {[%clk 0:00:08]} 50. Kd1 {[%clk 0:01:13]}  Nf4 {[%clk 0:00:08]} 51. Bxf4 {[%clk 0:01:12]}  Bxf4 {[%clk 0:00:09]} 52. Bd7 {[%clk 0:01:13]}  Bd6 {[%clk 0:00:05]} 53. Bxc6 {[%clk 0:01:12]}  b4 {[%clk 0:00:05]} 54. Bxd5 {[%clk 0:01:06]}  bxc3 {[%clk 0:00:02]} 55. bxc3 {[%clk 0:01:07]}  Kf5 {[%clk 0:00:02]} 56. Kc2 {[%clk 0:01:07]}  Kf4 {[%clk 0:00:02]} 57. Ba2 {[%clk 0:01:03]}  Ke3 {[%clk 0:00:02]} 58. Bc4 {[%clk 0:00:58]}  Bc7 {[%clk 0:00:02]} 59. Bb5 {[%clk 0:00:59]}  Bb6 {[%clk 0:00:02]} 60. Bxa4 {[%clk 0:00:59]}  Bxd4 {[%clk 0:00:02]} 61. c4 {[%clk 0:00:59]}  Bc5 {[%clk 0:00:03]} 62. Kc3 {[%clk 0:00:58]}  Ke4 {[%clk 0:00:03]} 63. Bc6+ {[%clk 0:00:58]}  Ke5 {[%clk 0:00:04]} 64. Kb3 {[%clk 0:00:59]}  Kd6 {[%clk 0:00:05]} 65. Bd5 {[%clk 0:00:59]}  Bb6 {[%clk 0:00:06]} 66. Ka4 {[%clk 0:01:00]}  Bc5 {[%clk 0:00:06]} 67. Kb5 {[%clk 0:01:00]}  Bf2 {[%clk 0:00:07]} 68. Bg8 {[%clk 0:01:00]}  Bc5 {[%clk 0:00:08]} 69. Bh7 {[%clk 0:01:01]}  Bg1 {[%clk 0:00:09]} 70. Kb4 {[%clk 0:01:01]}  Bc5+ {[%clk 0:00:10]} 71. Kc3 {[%clk 0:01:02]}  Bg1 {[%clk 0:00:11]} 72. Kd3 {[%clk 0:01:03]}  Bc5 {[%clk 0:00:12]} 73. Ke4 {[%clk 0:01:03]}  Bg1 {[%clk 0:00:13]} 74. Kf3 {[%clk 0:01:04]}  Ba7 {[%clk 0:00:13]} 75. Ke2 {[%clk 0:01:04]}  Bc5 {[%clk 0:00:14]} 76. Kd3 {[%clk 0:01:05]}  Bb6 {[%clk 0:00:15]} 77. Kc3 {[%clk 0:01:06]}  Bc5 {[%clk 0:00:16]} 78. Kb3 {[%clk 0:01:06]}  Bg1 {[%clk 0:00:17]} 79. Ka4 {[%clk 0:01:07]}  Bf2 {[%clk 0:00:17]} 80. Kb5 {[%clk 0:01:08]}  Bg1 {[%clk 0:00:18]} 81. Ka6 {[%clk 0:01:08]}  Bf2 {[%clk 0:00:19]} 82. Bg8 {[%clk 0:01:08]}  Bg1 {[%clk 0:00:20]} 83. Kb7 {[%clk 0:01:09]}  Bf2 {[%clk 0:00:21]} 84. Kc8 {[%clk 0:01:10]}  Bg1 {[%clk 0:00:22]} 85. Kb7 {[%clk 0:01:10]}  Bf2 {[%clk 0:00:23]} 86. Ka6 {[%clk 0:01:11]}  Bg1 {[%clk 0:00:24]} 87. Kb5 {[%clk 0:01:12]}  Bf2 {[%clk 0:00:24]} 88. Kb4 {[%clk 0:01:13]}  Bg1 {[%clk 0:00:25]} 89. Kc3 {[%clk 0:01:14]}  Bf2 {[%clk 0:00:26]} 90. Kd3 {[%clk 0:01:15]}  Bc5 {[%clk 0:00:26]} 91. Kc3 {[%clk 0:01:15]}  Ba7 {[%clk 0:00:27]} 92. Kb3 {[%clk 0:01:16]}  Bb6 {[%clk 0:00:27]} 93. Kb4 {[%clk 0:01:16]}  Bc5+ {[%clk 0:00:28]} 94. Kb5 {[%clk 0:01:17]}  Bf2 {[%clk 0:00:29]} 95. Kb4 {[%clk 0:01:18]}  Bc5+ {[%clk 0:00:29]} 96. Kc3 {[%clk 0:01:18]}  Bf2 {[%clk 0:00:30]} 97. Kd3 {[%clk 0:01:18]}  Bc5 {[%clk 0:00:31]} 98. Ke4 {[%clk 0:01:19]}  Ba7 {[%clk 0:00:31]} 99. Kf3 {[%clk 0:01:20]}  Bc5 {[%clk 0:00:32]} 100. Bd5 {[%clk 0:01:20]}  Ba7 {[%clk 0:00:33]} 101. Kg4 {[%clk 0:01:20]}  Bc5 {[%clk 0:00:34]} 102. Bf7 {[%clk 0:01:20]}  Bb6 {[%clk 0:00:34]} 103. Kf3 {[%clk 0:01:21]}  Kc5 {[%clk 0:00:35]} 104. Ke4 {[%clk 0:01:22]}  Ba5 {[%clk 0:00:35]} 105. Ke5 {[%clk 0:01:22]}  Bb4 {[%clk 0:00:36]} 106. Ke4 {[%clk 0:01:23]}  Ba5 {[%clk 0:00:37]} 107. Kd3 {[%clk 0:01:24]}  Bb6 {[%clk 0:00:38]} 108. Kc2 {[%clk 0:01:25]}  Ba7 {[%clk 0:00:39]} 109. Kb3 {[%clk 0:01:25]}  Bb8 {[%clk 0:00:40]} 110. Ka4 {[%clk 0:01:26]}  Ba7 {[%clk 0:00:40]} 111. Ka5 {[%clk 0:01:27]} 1/2-1/2


[Site "https://www.chess.com"]